[Event "FIDE Grand Swiss 2023"]
[Site "Villa Marina, Douglas, Isle of Man"]
[Date "2023.11.04"]
[Round "10.5"]
[White "Sevian, Samuel"]
[Black "Erigaisi, Arjun"]
[Result "0-1"]
[WhiteElo "2698"]
[BlackElo "2712"]
[EventDate "2023.10.25"]
[ECO "D31"]
[PlyCount "64"]
[BlackClock "00:16:23"]
[BlackFideId "35009192"]
[TimeControl "40/100 + 20/50 + 15 + 30s/move"]
[WhiteClock "00:00:07"]
[WhiteFideId "2040506"]

1.d4 {[%clk 01:40:49][%emt 00:00:10]} 1...d5 {[%clk 01:40:13][%emt 00:00:48]} 
2.c4 {[%clk 01:40:54][%emt 00:00:25]} 2...e6 {[%clk 01:40:37][%emt 00:00:05]} 
3.Nc3 {[%clk 01:40:32][%emt 00:00:52]} 3...c6 {[%clk 01:40:55][%emt 00:00:12]} 
4.Nf3 {[%clk 01:38:17][%emt 00:02:46]} 4...dxc4 {[%clk 01:40:51][%emt 00:00:34]} 
5.e3 {[%clk 01:37:32][%emt 00:01:15]} 5...b5 {[%clk 01:41:14][%emt 00:00:07]} 
6.a4 {[%clk 01:37:58][%emt 00:00:04]} 6...Bb4 {[%clk 01:41:29][%emt 00:00:14]} 
7.Bd2 {[%clk 01:38:20][%emt 00:00:08]} 7...a5 {[%clk 01:41:04][%emt 00:00:55]} 
8.axb5 {[%clk 01:38:12][%emt 00:00:39]} 8...Bxc3 {[%clk 01:41:29][%emt
00:00:05]} 9.Bxc3 {[%clk 01:38:34][%emt 00:00:07]} 9...cxb5 {[%clk
01:41:54][%emt 00:00:05]} 10.b3 {[%clk 01:38:57][%emt 00:00:07]} 10...Bb7 
{[%clk 01:42:18][%emt 00:00:06]} 11.bxc4 {[%clk 01:39:19][%emt 00:00:08]} 
11...b4 {[%clk 01:42:44][%emt 00:00:05]} 12.Bb2 {[%clk 01:39:13][%emt 00:00:35]} 
12...Nf6 {[%clk 01:43:07][%emt 00:00:07]} 13.Bd3 {[%clk 01:39:17][%emt
00:00:26]} 13...O-O {[%clk 01:43:29][%emt 00:00:08]} 14.O-O {[%clk
01:39:25][%emt 00:00:22]} 14...Qc7 {[%clk 01:43:39][%emt 00:00:20]} 15.Nd2 
{[%clk 01:26:30][%emt 00:13:25]} 15...a4 {[%clk 01:24:35][%emt 00:19:34]} 16.d5 
{[%clk 01:17:02][%emt 00:09:58]} 16...b3 {[%clk 01:24:49][%emt 00:00:16]} 
17.Bxf6 {[%clk 00:36:01][%emt 00:41:32]} 17...gxf6 {[%clk 01:24:54][%emt
00:00:24]} 18.Qh5 {[%clk 00:30:29][%emt 00:06:02]} 18...f5 {[%clk 01:24:40][%emt
00:00:45]} 19.Nf3 {[%clk 00:22:38][%emt 00:08:21]} 19...f6 {[%clk 01:22:57][%emt
00:02:13]} 20.Nd4 {[%clk 00:19:27][%emt 00:03:41]} 20...exd5 {[%clk
01:20:06][%emt 00:03:21]} 21.Qxf5 {[%clk 00:16:01][%emt 00:03:55]} 21...Qd7 
{[%clk 00:43:32][%emt 00:37:04]} 22.Ne6 {[%clk 00:15:26][%emt 00:01:05]} 
22...Nc6 {[%clk 00:41:51][%emt 00:02:11]} 23.cxd5 {[%clk 00:07:08][%emt
00:08:49]} 23...Ne5 {[%clk 00:42:00][%emt 00:00:20]} 24.Nc5 {[%clk
00:05:48][%emt 00:01:50]} 24...Qxf5 {[%clk 00:32:39][%emt 00:09:51]} 25.Bxf5 
{[%clk 00:06:16][%emt 00:00:02]} 25...Bc8 {[%clk 00:33:03][%emt 00:00:07]} 
26.Bxc8 {[%clk 00:00:53][%emt 00:05:54]} 26...Rfxc8 {[%clk 00:33:27][%emt
00:00:04]} 27.Rxa4 {[%clk 00:01:16][%emt 00:00:08]} 27...b2 {[%clk
00:32:05][%emt 00:01:52]} 28.Rb4 {[%clk 00:00:38][%emt 00:01:08]} 28...Rab8 
{[%clk 00:20:05][%emt 00:12:29]} 29.Nb7 {[%clk 00:01:03][%emt 00:00:06]} 
29...Rc2 {[%clk 00:17:26][%emt 00:03:09]} 30.Rb5 {[%clk 00:00:32][%emt
00:01:00]} 30...Nc4 {[%clk 00:16:05][%emt 00:01:51]} 31.d6 {[%clk 00:00:47][%emt
00:00:15]} 31...Nd2 {[%clk 00:15:58][%emt 00:00:38]} 32.d7 {[%clk 00:00:34]
[%emt 00:00:44]} 32...Rc1 {[%clk 00:16:23] [%emt 00:00:04]} 0-1

[Event "FIDE Grand Swiss 2023"]
[Site "Villa Marina, Douglas, Isle of Man"]
[Date "2023.11.04"]
[Round "10.6"]
[White "Predke, Alexandr"]
[Black "Kuzubov, Yuriy"]
[Result "1-0"]
[WhiteElo "2656"]
[BlackElo "2625"]
[EventDate "2023.10.25"]
[ECO "D35"]
[PlyCount "69"]
[BlackClock "00:01:19"]
[BlackFideId "14112906"]
[TimeControl "40/100 + 20/50 + 15 + 30s/move"]
[WhiteClock "00:14:39"]
[WhiteFideId "24107581"]

1.d4 {[%clk 01:39:54][%emt 00:01:06]} 1...Nf6 {[%clk 01:40:54][%emt 00:00:07]} 
2.c4 {[%clk 01:40:18][%emt 00:00:06]} 2...e6 {[%clk 01:41:18][%emt 00:00:06]} 
3.Nc3 {[%clk 01:40:30][%emt 00:00:17]} 3...d5 {[%clk 01:41:41][%emt 00:00:07]} 
4.cxd5 {[%clk 01:40:37][%emt 00:00:24]} 4...exd5 {[%clk 01:42:05][%emt
00:00:05]} 5.Bg5 {[%clk 01:40:57][%emt 00:00:10]} 5...Be7 {[%clk 01:42:01][%emt
00:00:34]} 6.e3 {[%clk 01:40:52][%emt 00:00:35]} 6...O-O {[%clk 01:41:26][%emt
00:01:05]} 7.Bd3 {[%clk 01:38:19][%emt 00:03:03]} 7...h6 {[%clk 01:38:01][%emt
00:03:55]} 8.Bh4 {[%clk 01:33:36][%emt 00:05:13]} 8...c6 {[%clk 01:35:35][%emt
00:02:56]} 9.Qc2 {[%clk 01:30:13][%emt 00:03:53]} 9...Re8 {[%clk 01:32:53][%emt
00:03:12]} 10.Nge2 {[%clk 01:29:50][%emt 00:00:54]} 10...Nbd7 {[%clk
01:33:10][%emt 00:00:13]} 11.O-O {[%clk 01:29:13][%emt 00:01:07]} 11...Ne4 
{[%clk 01:27:17][%emt 00:06:22]} 12.Bxe7 {[%clk 01:18:16][%emt 00:11:27]} 
12...Qxe7 {[%clk 01:27:21][%emt 00:00:26]} 13.Bxe4 {[%clk 01:09:58][%emt
00:08:49]} 13...dxe4 {[%clk 01:25:29][%emt 00:02:22]} 14.Ng3 {[%clk
01:10:08][%emt 00:00:20]} 14...Nf6 {[%clk 01:24:58][%emt 00:01:00]} 15.h3 
{[%clk 01:10:29][%emt 00:00:10]} 15...h5 {[%clk 01:01:50][%emt 00:23:37]} 16.f3 
{[%clk 01:09:17][%emt 00:01:41]} 16...exf3 {[%clk 00:58:41][%emt 00:03:41]} 
17.Rxf3 {[%clk 01:09:42][%emt 00:00:04]} 17...h4 {[%clk 00:59:04][%emt
00:00:07]} 18.Nge2 {[%clk 00:51:10][%emt 00:19:03]} 18...b5 {[%clk
00:46:14][%emt 00:13:19]} 19.Raf1 {[%clk 00:43:08][%emt 00:08:32]} 19...b4 
{[%clk 00:45:57][%emt 00:00:48]} 20.Na4 {[%clk 00:31:11][%emt 00:12:27]} 
20...Nd5 {[%clk 00:41:24][%emt 00:05:02]} 21.Rxf7 {[%clk 00:30:16][%emt
00:01:25]} 21...Qxe3+ {[%clk 00:39:11][%emt 00:02:43]} 22.R1f2 {[%clk
00:28:37][%emt 00:02:09]} 22...Qg5 {[%clk 00:31:10][%emt 00:08:31]} 23.Qxc6 
{[%clk 00:27:30][%emt 00:01:38]} 23...Bxh3 {[%clk 00:07:00][%emt 00:24:39]} 
24.R7f5 {[%clk 00:26:51][%emt 00:01:09]} 24...Bxf5 {[%clk 00:07:12][%emt
00:00:19]} 25.Qxd5+ {[%clk 00:27:17][%emt 00:00:04]} 25...Kh7 {[%clk
00:07:33][%emt 00:00:09]} 26.Rxf5 {[%clk 00:27:01][%emt 00:00:45]} 26...Qe3+ 
{[%clk 00:06:24][%emt 00:01:38]} 27.Kh2 {[%clk 00:17:21][%emt 00:10:11]} 
27...g6 {[%clk 00:02:35][%emt 00:04:20]} 28.Rf4 {[%clk 00:16:53][%emt 00:00:58]} 
28...h3 {[%clk 00:00:39][%emt 00:02:26]} 29.Qf7+ {[%clk 00:15:30][%emt
00:01:52]} 29...Kh6 {[%clk 00:01:03][%emt 00:00:06]} 30.Qf6 {[%clk
00:14:44][%emt 00:01:17]} 30...Qxe2 {[%clk 00:00:39][%emt 00:00:54]} 31.Rh4+ 
{[%clk 00:15:03][%emt 00:00:11]} 31...Qh5 {[%clk 00:01:04][%emt 00:00:04]} 
32.Rxh5+ {[%clk 00:15:15][%emt 00:00:19]} 32...Kxh5 {[%clk 00:01:30][%emt
00:00:04]} 33.Kxh3 {[%clk 00:14:50][%emt 00:00:55]} 33...Re3+ {[%clk
00:01:24][%emt 00:00:35]} 34.g3 {[%clk 00:14:31][%emt 00:00:50]} 34...g5 {[%clk
00:01:48][%emt 00:00:06]} 35.Qg7 {[%clk 00:14:39] [%emt 00:00:21]} 1-0

[Event "FIDE Grand Swiss 2023"]
[Site "Villa Marina, Douglas, Isle of Man"]
[Date "2023.11.04"]
[Round "10.7"]
[White "Niemann, Hans Moke"]
[Black "Giri, Anish"]
[Result "0-1"]
[WhiteElo "2667"]
[BlackElo "2760"]
[EventDate "2023.10.25"]
[ECO "A11"]
[PlyCount "188"]
[BlackFideId "24116068"]
[TimeControl "40/100 + 20/50 + 15 + 30s/move"]
[WhiteFideId "2093596"]

1.c4 {[%clk 01:40:49][%emt 00:00:09]} 1...c6 {[%clk 01:38:56][%emt 00:02:05]} 
2.Nf3 {[%clk 01:40:05][%emt 00:01:14]} 2...d5 {[%clk 01:38:47][%emt 00:00:39]} 
3.e3 {[%clk 01:40:11][%emt 00:00:23]} 3...Nf6 {[%clk 01:37:40][%emt 00:01:38]} 
4.Nc3 {[%clk 01:39:29][%emt 00:01:11]} 4...Nbd7 {[%clk 01:37:36][%emt 00:00:34]} 
5.Qc2 {[%clk 01:31:09][%emt 00:08:51]} 5...e5 {[%clk 01:36:24][%emt 00:01:41]} 
6.cxd5 {[%clk 01:31:06][%emt 00:00:33]} 6...Nxd5 {[%clk 01:36:49][%emt
00:00:05]} 7.d4 {[%clk 01:24:21][%emt 00:07:15]} 7...Nb4 {[%clk 01:29:38][%emt
00:07:42]} 8.Qd1 {[%clk 01:16:43][%emt 00:08:08]} 8...exd4 {[%clk 01:25:25][%emt
00:04:44]} 9.exd4 {[%clk 01:14:25][%emt 00:02:45]} 9...Bd6 {[%clk 01:19:17][%emt
00:06:39]} 10.a3 {[%clk 01:08:40][%emt 00:06:16]} 10...Nd5 {[%clk 01:19:32][%emt
00:00:15]} 11.Nxd5 {[%clk 01:06:45][%emt 00:02:25]} 11...cxd5 {[%clk
01:19:54][%emt 00:00:09]} 12.Bd3 {[%clk 01:04:51][%emt 00:02:23]} 12...O-O 
{[%clk 01:15:39][%emt 00:04:45]} 13.O-O {[%clk 01:05:09][%emt 00:00:10]} 
13...h6 {[%clk 01:14:21][%emt 00:01:51]} 14.Qb3 {[%clk 01:04:08][%emt 00:01:29]} 
14...Nf6 {[%clk 01:09:59][%emt 00:04:53]} 15.Ne5 {[%clk 01:04:03][%emt
00:00:35]} 15...Bxe5 {[%clk 00:44:24][%emt 00:26:06]} 16.dxe5 {[%clk
01:03:59][%emt 00:00:34]} 16...Nd7 {[%clk 00:44:49][%emt 00:00:05]} 17.f4 
{[%clk 01:00:15][%emt 00:04:12]} 17...Nc5 {[%clk 00:42:56][%emt 00:02:25]} 
18.Qc3 {[%clk 00:56:11][%emt 00:04:33]} 18...Nxd3 {[%clk 00:38:18][%emt
00:05:09]} 19.Qxd3 {[%clk 00:56:34][%emt 00:00:06]} 19...Qb6+ {[%clk
00:37:43][%emt 00:01:05]} 20.Rf2 {[%clk 00:52:32][%emt 00:04:32]} 20...Re8 
{[%clk 00:34:34][%emt 00:03:40]} 21.Be3 {[%clk 00:48:51][%emt 00:04:09]} 
21...Bf5 {[%clk 00:34:37][%emt 00:00:28]} 22.Bxb6 {[%clk 00:49:14][%emt
00:00:07]} 22...Bxd3 {[%clk 00:35:04][%emt 00:00:03]} 23.Bd4 {[%clk
00:49:36][%emt 00:00:06]} 23...Rec8 {[%clk 00:31:33][%emt 00:04:03]} 24.Rd1 
{[%clk 00:49:04][%emt 00:01:00]} 24...Bc2 {[%clk 00:30:19][%emt 00:01:45]} 
25.Rdd2 {[%clk 00:49:04][%emt 00:00:29]} 25...Be4 {[%clk 00:29:32][%emt
00:01:18]} 26.h3 {[%clk 00:46:52][%emt 00:02:42]} 26...Rc1+ {[%clk
00:29:07][%emt 00:00:56]} 27.Kh2 {[%clk 00:45:43][%emt 00:01:39]} 27...g6 
{[%clk 00:28:34][%emt 00:01:03]} 28.Kg3 {[%clk 00:43:50][%emt 00:02:22]} 
28...b6 {[%clk 00:27:44][%emt 00:01:21]} 29.Kh4 {[%clk 00:43:49][%emt 00:00:30]} 
29...Rac8 {[%clk 00:28:10][%emt 00:00:06]} 30.Bc3 {[%clk 00:44:06][%emt
00:00:11]} 30...Rc4 {[%clk 00:27:19][%emt 00:01:23]} 31.g4 {[%clk 00:43:56][%emt
00:00:39]} 31...Kf8 {[%clk 00:25:42][%emt 00:02:07]} 32.Bd4 {[%clk
00:42:31][%emt 00:01:54]} 32...Rh1 {[%clk 00:22:49][%emt 00:03:24]} 33.Bc3 
{[%clk 00:42:26][%emt 00:00:34]} 33...Ke7 {[%clk 00:22:11][%emt 00:01:09]} 
34.Kg3 {[%clk 00:39:38] [%emt 00:03:18]} 34...Rg1+ {[%clk 00:22:35][%emt
00:00:06]} 35.Kh2 {[%clk 00:39:25][%emt 00:00:40]} 35...Rh1+ {[%clk
00:23:01][%emt 00:00:07]} 36.Kg3 {[%clk 00:39:38][%emt 00:03:18]} 36...Ke6 
{[%clk 00:20:33][%emt 00:02:59]} 37.Kh4 {[%clk 00:37:14][%emt 00:03:06]} 
37...Rc8 {[%clk 00:15:03] [%emt 00:06:01]} 38.Rh2 {[%clk 00:35:39] [%emt
00:02:02]} 38...Rf1 {[%clk 00:14:54] [%emt 00:00:41]} 39.Rhf2 {[%clk 00:35:05]
[%emt 00:01:02]} 39...Rh1 {[%clk 00:15:03][%emt 00:06:01]} 40.Rh2 {[%clk
00:35:39][%emt 00:02:02]} 40...Rf1 {[%clk 00:14:54][%emt 00:00:41]} 41.Rhf2 
{[%clk 00:35:05][%emt 00:01:02]} 41...Rc1 {[%clk 00:50:18][%emt 00:14:45]} 
42.Bd4 {[%clk 01:20:33] [%emt 00:01:22]} 42...Rh8 {[%clk 00:46:28][%emt
00:04:20]} 43.Rh2 {[%clk 01:17:53][%emt 00:03:10]} 43...Rhc8 {[%clk
00:40:50][%emt 00:06:09]} 44.Rhf2 {[%clk 01:20:33][%emt 00:01:22]} 44...Rh1 
{[%clk 00:40:19][%emt 00:01:00]} 45.Bc3 {[%clk 01:14:57][%emt 00:03:01]} 
45...Rg1 {[%clk 00:40:32][%emt 00:00:18]} 46.Rh2 {[%clk 01:13:42][%emt
00:01:46]} 46...Rc4 {[%clk 00:35:29][%emt 00:05:33]} 47.Rhf2 {[%clk
01:13:00][%emt 00:01:10]} 47...Bb1 {[%clk 00:30:31][%emt 00:05:30]} 48.Bd4 
{[%clk 01:10:04][%emt 00:03:26]} 48...Re1 {[%clk 00:30:43][%emt 00:00:17]} 
49.b3 {[%clk 01:09:01][%emt 00:01:34]} 49...Rcc1 {[%clk 00:29:48][%emt
00:01:25]} 50.Bb2 {[%clk 01:07:33][%emt 00:01:56]} 50...Rcd1 {[%clk
00:28:42][%emt 00:01:37]} 51.Bd4 {[%clk 01:07:30][%emt 00:00:34]} 51...Be4 
{[%clk 00:27:12][%emt 00:02:00]} 52.b4 {[%clk 01:03:08][%emt 00:04:52]} 
52...Rf1 {[%clk 00:24:57][%emt 00:02:46]} 53.Be3 {[%clk 00:57:04][%emt
00:06:33]} 53...Rxd2 {[%clk 00:21:38][%emt 00:03:49]} 54.Rxf1 {[%clk
00:51:46][%emt 00:05:48]} 54...Rd3 {[%clk 00:21:55][%emt 00:00:12]} 55.f5+ 
{[%clk 00:51:59][%emt 00:00:16]} 55...gxf5 {[%clk 00:21:43][%emt 00:00:44]} 
56.Bxh6 {[%clk 00:52:23][%emt 00:00:06]} 56...Rxa3 {[%clk 00:21:10][%emt
00:01:03]} 57.Rc1 {[%clk 00:51:42][%emt 00:01:10]} 57...Bg2 {[%clk
00:13:22][%emt 00:08:19]} 58.Bf4 {[%clk 00:36:34][%emt 00:15:37]} 58...Rxh3+ 
{[%clk 00:09:03][%emt 00:04:50]} 59.Kg5 {[%clk 00:37:00][%emt 00:00:04]} 
59...fxg4 {[%clk 00:09:28][%emt 00:00:05]} 60.Rc6+ {[%clk 00:37:25][%emt
00:00:03]} 60...Kd7 {[%clk 00:09:45][%emt 00:00:14]} 61.Rd6+ {[%clk
00:37:45][%emt 00:00:09]} 61...Kc8 {[%clk 00:10:04][%emt 00:00:12]} 62.Rc6+ 
{[%clk 00:37:57][%emt 00:00:18]} 62...Kb7 {[%clk 00:09:40][%emt 00:00:54]} 
63.b5 {[%clk 00:38:14][%emt 00:00:13]} 63...d4 {[%clk 00:13:14][%emt 00:11:56]} 
64.Rd6 {[%clk 00:51:53][%emt 00:01:50]} 64...Kc8 {[%clk 00:13:21][%emt
00:00:24]} 65.Kf6 {[%clk 00:50:09][%emt 00:02:12]} 65...Rh7 {[%clk
00:06:26][%emt 00:07:27]} 66.Ke7 {[%clk 00:40:37][%emt 00:10:02]} 66...f5+ 
{[%clk 00:06:52][%emt 00:00:05]} 67.Ke8 {[%clk 00:36:21][%emt 00:04:45]} 
67...Bf1 {[%clk 00:05:58][%emt 00:01:24]} 68.Rxd4 {[%clk 00:36:25][%emt
00:00:26]} 68...Bxb5+ {[%clk 00:06:20][%emt 00:00:09]} 69.Kf8 {[%clk 00:36:53]} 
69...Rh4 {[%clk 00:01:55][%emt 00:04:55]} 70.Rd2 {[%clk 00:36:47][%emt
00:00:36]} 70...Rh1 {[%clk 00:01:10][%emt 00:01:16]} 71.e6 {[%clk 00:37:03][%emt
00:00:14]} 71...Rf1 {[%clk 00:01:37][%emt 00:00:03]} 72.Rd4 {[%clk
00:37:11][%emt 00:00:21]} 72...Re1 {[%clk 00:01:39][%emt 00:00:29]} 73.e7 
{[%clk 00:37:36][%emt 00:00:04]} 73...Re4 {[%clk 00:00:48][%emt 00:01:22]} 
74.Rd5 {[%clk 00:37:57][%emt 00:00:04]} 74...Bd7 {[%clk 00:01:07][%emt
00:00:15]} 75.Rd1 {[%clk 00:37:45][%emt 00:00:41]} 75...Bc6 {[%clk
00:01:12][%emt 00:00:27]} 76.Rd6 {[%clk 00:36:46][%emt 00:01:28]} 76...Kb7 
{[%clk 00:01:17][%emt 00:00:27]} 77.Rf6 {[%clk 00:37:13][%emt 00:00:01]} 
77...b5 {[%clk 00:00:46][%emt 00:01:02]} 78.Rxf5 {[%clk 00:37:26][%emt
00:00:16]} 78...b4 {[%clk 00:01:14][%emt 00:00:02]} 79.Rf7 {[%clk 00:35:49][%emt
00:02:07]} 79...Kb6 {[%clk 00:01:24][%emt 00:00:20]} 80.Bb8 {[%clk
00:35:39][%emt 00:00:38]} 80...a6 {[%clk 00:01:27][%emt 00:00:28]} 81.Bc7+ 
{[%clk 00:35:29][%emt 00:00:40]} 81...Kb5 {[%clk 00:01:49][%emt 00:00:09]} 
82.Rf5+ {[%clk 00:35:49][%emt 00:00:09]} 82...Kc4 {[%clk 00:02:12][%emt
00:00:07]} 83.Bd6 {[%clk 00:35:50][%emt 00:00:28]} 83...Bb5 {[%clk
00:02:33][%emt 00:00:10]} 84.Rc5+ {[%clk 00:35:24][%emt 00:00:56]} 84...Kd4 
{[%clk 00:02:48][%emt 00:00:14]} 85.Rg5 {[%clk 00:34:47] [%emt 00:01:06]} 
85...b3 {[%clk 00:03:06] [%emt 00:00:14]} 86.Ba3 {[%clk 00:35:15] [%emt
00:00:02]} 86...Kd3 {[%clk 00:02:53] [%emt 00:00:44]} 87.Rc5 {[%clk 00:35:28]
[%emt 00:00:16]} 87...g3 {[%clk 00:02:15] [%emt 00:01:09]} 88.Rg5 {[%clk
00:35:46] [%emt 00:00:11]} 88...Re3 {[%clk 00:02:43] [%emt 00:00:03]} 89.Bc1 
{[%clk 00:34:09] [%emt 00:02:07]} 89...Rf3+ {[%clk 00:02:37] [%emt 00:00:36]} 
90.Kg8 {[%clk 00:34:32] [%emt 00:00:07]} 90...Be8 {[%clk 00:02:57] [%emt
00:00:11]} 91.Ba3 {[%clk 00:34:14] [%emt 00:00:47]} 91...Kc2 {[%clk 00:03:18]
[%emt 00:00:08]} 92.Rc5+ {[%clk 00:34:34] [%emt 00:00:10]} 92...Kb1 {[%clk
00:03:21] [%emt 00:00:27]} 93.Rc8 {[%clk 00:34:56] [%emt 00:00:09]} 93...g2 
{[%clk 00:03:16] [%emt 00:00:36]} 94.Bc5 {[%clk 00:35:22] [%emt 00:00:04]} 
94...Rc3 {[%clk 00:03:26] [%emt 00:00:19]} 0-1

[Event "FIDE Grand Swiss 2023"]
[Site "Villa Marina, Douglas, Isle of Man"]
[Date "2023.11.04"]
[Round "10.8"]
[White "Aronian, Levon"]
[Black "Ter-Sahakyan, Samvel"]
[Result "1/2-1/2"]
[WhiteElo "2742"]
[BlackElo "2618"]
[EventDate "2023.10.25"]
[ECO "A20"]
[PlyCount "44"]
[BlackClock "01:15:16"]
[BlackFideId "13302531"]
[TimeControl "40/100 + 20/50 + 15 + 30s/move"]
[WhiteClock "01:35:27"]
[WhiteFideId "13300474"]

1.c4 {[%clk 01:40:29][%emt 00:00:29]} 1...e5 {[%clk 01:40:06][%emt 00:00:55]} 
2.g3 {[%clk 01:40:54][%emt 00:00:06]} 2...c6 {[%clk 01:39:38][%emt 00:00:58]} 
3.d4 {[%clk 01:41:18][%emt 00:00:06]} 3...e4 {[%clk 01:39:50][%emt 00:00:18]} 
4.d5 {[%clk 01:41:43][%emt 00:00:06]} 4...Bb4+ {[%clk 01:40:08][%emt 00:00:12]} 
5.Bd2 {[%clk 01:42:06][%emt 00:00:06]} 5...Qe7 {[%clk 01:40:31][%emt 00:00:07]} 
6.e3 {[%clk 01:42:22][%emt 00:00:14]} 6...Bxd2+ {[%clk 01:38:26][%emt 00:02:34]} 
7.Qxd2 {[%clk 01:40:27][%emt 00:02:26]} 7...d6 {[%clk 01:38:16][%emt 00:00:40]} 
8.Nc3 {[%clk 01:40:25][%emt 00:00:32]} 8...c5 {[%clk 01:35:54][%emt 00:02:53]} 
9.Bg2 {[%clk 01:40:49][%emt 00:00:05]} 9...f5 {[%clk 01:27:41][%emt 00:08:43]} 
10.f4 {[%clk 01:40:45][%emt 00:00:34]} 10...Nf6 {[%clk 01:21:23][%emt 00:06:48]} 
11.Nh3 {[%clk 01:39:59][%emt 00:01:16]} 11...Na6 {[%clk 01:18:00][%emt
00:03:53]} 12.Nf2 {[%clk 01:39:15][%emt 00:01:13]} 12...h5 {[%clk 01:18:13][%emt
00:00:17]} 13.h4 {[%clk 01:34:49][%emt 00:04:55]} 13...Bd7 {[%clk 01:17:37][%emt
00:01:06]} 14.Bf1 {[%clk 01:34:50][%emt 00:00:29]} 14...Nc7 {[%clk
01:16:43][%emt 00:01:24]} 15.Be2 {[%clk 01:34:02][%emt 00:01:18]} 15...O-O 
{[%clk 01:13:21][%emt 00:03:52]} 16.O-O {[%clk 01:34:01][%emt 00:00:31]} 
16...Rfb8 {[%clk 01:13:24][%emt 00:00:27]} 17.a4 {[%clk 01:34:05][%emt
00:00:26]} 17...a5 {[%clk 01:13:36][%emt 00:00:18]} 18.b3 {[%clk 01:34:22][%emt
00:00:13]} 18...b6 {[%clk 01:13:44] [%emt 00:00:23]} 19.Kg2 {[%clk 01:34:24]
[%emt 00:00:27]} 19...Re8 {[%clk 01:13:58] [%emt 00:00:16]} 20.Kg1 {[%clk
01:34:46] [%emt 00:00:08]} 20...Reb8 {[%clk 01:14:23] [%emt 00:00:05]} 21.Kg2 
{[%clk 01:35:10][%emt 00:00:05]} 21...Re8 {[%clk 01:14:50][%emt 00:00:04]} 
22.Kg1 {[%clk 01:34:46][%emt 00:00:08]} 22...Reb8 {[%clk 01:13:44][%emt
00:00:23]} 1/2-1/2

[Event "FIDE Grand Swiss 2023"]
[Site "Villa Marina, Douglas, Isle of Man"]
[Date "2023.11.04"]
[Round "10.9"]
[White "Korobov, Anton"]
[Black "Praggnanandhaa, R"]
[Result "1/2-1/2"]
[WhiteElo "2658"]
[BlackElo "2738"]
[EventDate "2023.10.25"]
[ECO "C77"]
[PlyCount "65"]
[BlackClock "00:12:11"]
[BlackFideId "25059530"]
[TimeControl "40/100 + 20/50 + 15 + 30s/move"]
[WhiteClock "00:16:10"]
[WhiteFideId "14105730"]

1.e4 {[%clk 01:40:55][%emt 00:00:03]} 1...e5 {[%clk 01:39:52][%emt 00:01:08]} 
2.Nf3 {[%clk 01:41:17][%emt 00:00:08]} 2...Nc6 {[%clk 01:40:18][%emt 00:00:05]} 
3.Bb5 {[%clk 01:41:29][%emt 00:00:17]} 3...a6 {[%clk 01:40:41][%emt 00:00:08]} 
4.Ba4 {[%clk 01:41:52][%emt 00:00:06]} 4...Nf6 {[%clk 01:41:05][%emt 00:00:07]} 
5.d3 {[%clk 01:42:04][%emt 00:00:18]} 5...Bc5 {[%clk 01:41:17][%emt 00:00:17]} 
6.O-O {[%clk 01:42:14]} 6...b5 {[%clk 01:39:05][%emt 00:03:02]} 7.Bb3 {[%clk
01:42:39]} 7...d6 {[%clk 01:37:57][%emt 00:01:44]} 8.c3 {[%clk 01:42:15]} 
8...h6 {[%clk 01:37:24][%emt 00:01:57]} 9.Nbd2 {[%clk 01:41:46]} 9...O-O {[%clk
01:36:17][%emt 00:02:34]} 10.Re1 {[%clk 01:39:31]} 10...Bb6 {[%clk
01:35:28][%emt 00:04:06]} 11.Nf1 {[%clk 01:37:21]} 11...Ne7 {[%clk
01:32:18][%emt 00:06:20]} 12.Ng3 {[%clk 01:32:52][%emt 00:04:58]} 12...Ng6 
{[%clk 01:29:32][%emt 00:03:16]} 13.h3 {[%clk 01:31:41][%emt 00:01:41]} 
13...Re8 {[%clk 01:27:03][%emt 00:02:59]} 14.a4 {[%clk 01:16:32][%emt 00:15:39]} 
14...Rb8 {[%clk 01:22:33][%emt 00:05:00]} 15.axb5 {[%clk 01:13:22][%emt
00:03:41]} 15...axb5 {[%clk 01:22:54][%emt 00:00:09]} 16.d4 {[%clk
01:00:57][%emt 00:12:55]} 16...c5 {[%clk 01:14:57][%emt 00:08:26]} 17.Bc2 
{[%clk 00:57:45][%emt 00:03:43]} 17...cxd4 {[%clk 00:51:49][%emt 00:23:38]} 
18.cxd4 {[%clk 00:57:56][%emt 00:00:18]} 18...Bb7 {[%clk 00:45:34][%emt
00:06:46]} 19.Be3 {[%clk 00:55:29][%emt 00:02:57]} 19...exd4 {[%clk
00:44:11][%emt 00:01:53]} 20.Bxd4 {[%clk 00:50:43][%emt 00:05:16] Anton Korobov
2658 - R Praggnanandhaa 2738, FIDE Grand Swiss 2023, Villa Marina, Douglas, Isle
of Man, Isle Of Man (10.9), 2023.11.04} 20...Rc8 {[%clk 00:39:12][%emt
00:05:30]} 21.Bd3 {[%clk 00:38:36][%emt 00:12:36]} 21...Bxd4 {[%clk
00:32:24][%emt 00:07:18]} 22.Nxd4 {[%clk 00:39:04][%emt 00:00:02]} 22...Qb6 
{[%clk 00:32:44][%emt 00:00:11]} 23.Nxb5 {[%clk 00:32:50][%emt 00:06:44]} 
23...d5 {[%clk 00:25:04][%emt 00:08:10]} 24.Bf1 {[%clk 00:29:28][%emt 00:03:51]} 
24...Nxe4 {[%clk 00:20:52][%emt 00:04:43]} 25.Qd4 {[%clk 00:22:30][%emt
00:07:28]} 25...Qxd4 {[%clk 00:18:46][%emt 00:02:36]} 26.Nxd4 {[%clk
00:21:22][%emt 00:01:38]} 26...Nxg3 {[%clk 00:19:00][%emt 00:00:16]} 27.fxg3 
{[%clk 00:19:30][%emt 00:02:22]} 27...Re4 {[%clk 00:18:54][%emt 00:00:36]} 
28.Red1 {[%clk 00:19:40][%emt 00:00:20]} 28...Ne5 {[%clk 00:14:20][%emt
00:05:05]} 29.Ra7 {[%clk 00:18:09][%emt 00:02:02]} 29...Rb8 {[%clk
00:12:08][%emt 00:02:42]} 30.b4 {[%clk 00:15:23][%emt 00:03:15]} 30...Rxd4 
{[%clk 00:11:38][%emt 00:00:59]} 31.Rxd4 {[%clk 00:15:27][%emt 00:00:27]} 
31...Nc6 {[%clk 00:12:06][%emt 00:00:02]} 32.Rxb7 {[%clk 00:15:48][%emt
00:00:10]} 32...Rxb7 {[%clk 00:12:34][%emt 00:00:02]} 33.Rxd5 {[%clk
00:16:10][%emt 00:00:07]} 1/2-1/2